fUST/lending_fUST_20241130
["ID","MTS","AMOUNT","RATE_DAILY","PERIOD"]
[343719882,1732918147085,-300.0,0.00019998,2]
[343719883,1732918147107,-300.0,0.00019998,2]
[343719884,1732918147128,-269.64028553,0.00019999,2]
[343719885,1732918147148,-241.18411177,0.00019999,2]
[343719886,1732918147170,-618.86686383,0.00019999,2]
[343719887,1732918147192,-500.0,0.00019999,2]
[343719888,1732918147214,-361.20225195,0.00019999,2]
[343719889,1732918147236,-14432.86546762,0.0002,15]
[343719890,1732918154137,-75060.43118,0.0002,15]
[343719891,1732918155113,-43203.37117816,0.0002,15]
[343719892,1732918155134,-6287.49788736,0.0002,2]
[343719893,1732918163103,-38607.97781609,0.0002,2]
[343719894,1732918163125,-977.80439734,0.00021462,2]
[343719895,1732918163147,-5000.0,0.00021562,2]
[343719896,1732918163168,-420.0,0.00021776,2]
[343719897,1732918163188,-454.43318697,0.0002178,2]
[343719898,1732918163208,-420.0,0.00021998,2]
[343719899,1732918163228,-152.0,0.00022,2]
[343719900,1732918163251,-151.6346525,0.0002273,2]
[343719901,1732918171112,-170.31001,0.00022591,2]
[343719902,1732918171132,-826.16974482,0.0002273,2]
[343719903,1732918171151,-202.0,0.00023,2]
[343719904,1732918171171,-152.0,0.00023014,2]
[343719905,1732918171191,-167.857162,0.00023435,2]
[343719906,1732918171211,-10596.1407966,0.00023691,2]
[343719907,1732918171231,-587.0,0.00023711,2]
[343719908,1732918171249,-1225.0526919,0.00023971,2]
[343719909,1732918171274,-977.80439732,0.00023998,2]
[343719910,1732918171294,-203.0,0.00024164,2]
[343719911,1732918171314,-223.72877753,0.00024198,2]
[343719935,1732918232576,-1063.01635133,0.0002475,2]
[343719938,1732918232586,-302.69733596,0.00025,2]
[343719940,1732918232596,-284.62420639,0.00025,2]
[343719960,1732918238559,-18.96781284,0.00025,2]
[343719961,1732918238570,-777.353011,0.00025039,2]
[343719962,1732918238584,-250.0,0.00025103,2]
[343719963,1732918238593,-300.0,0.00025831,2]
[343719964,1732918238603,-300.0,0.00025831,2]
[343719965,1732918238612,-21078.29959192,0.00025832,2]
[343719978,1732918238871,-3821.70040808,0.00025832,2]
[343719981,1732918238894,-153.0,0.00025941,2]
[343719983,1732918238904,-153.0,0.00025941,2]
[343719986,1732918238914,-475.44466697,0.00026179,2]
[343719988,1732918238924,-153.0,0.00026301,2]
[343719990,1732918238933,-153.0,0.00026301,2]
[343719992,1732918238943,-168.622,0.00026363,13]
[343719994,1732918238952,-153.0,0.00026541,2]
[343719996,1732918238961,-153.0,0.00026541,2]
[343719998,1732918238970,-153.0,0.00026541,2]
[343720000,1732918238979,-211.3465353,0.00026678,2]
[343720002,1732918238989,-305.0478812,0.00026678,2]
[343720004,1732918238998,-153.0,0.00026678,2]
[343720006,1732918239008,-411.6041919,0.00026678,2]
[343720008,1732918239018,-500.0,0.00027397,2]
[343720010,1732918239028,-350.18,0.0002749,10]
[343720012,1732918239037,-1319.12924349,0.00027499,2]
[343720014,1732918239047,-188.74819987,0.00027499,2]
[343720016,1732918239056,-605.74197564,0.000275,2]
[343720018,1732918239066,-20637.31569738,0.000275,5]
[343720061,1732918240432,-291.82,0.0002749,10]
[343720062,1732918240442,-36517.57807506,0.000275,5]
[343720063,1732918240455,-34210.53364035,0.000275,5]
[343720071,1732918243476,-1099.27436958,0.00027499,2]
[343720072,1732918243486,-11995.25964042,0.000275,5]
[343720073,1732918243570,-149275.26131803,0.000275,5]
[343720074,1732918243579,-542.00922101,0.000275,2]
[343720075,1732918243589,-617.0,0.000275,2]
[343720076,1732918243598,-500.0,0.000275,24]
[343720077,1732918243608,-500.0,0.00027581,10]
[343720078,1732918243617,-500.0,0.00027591,10]
[343720079,1732918243627,-150.0,0.00027626,2]
[343720080,1732918243638,-250.0,0.00027626,2]
[343720081,1732918243648,-150.0,0.00027626,2]
[343720082,1732918243659,-531.0,0.00027626,2]
[343720083,1732918243668,-2377.0,0.00027626,2]
[343720084,1732918243678,-2178.0,0.00027626,2]
[343720085,1732918243688,-500.0,0.00027767,7]
[343720086,1732918243698,-586.54,0.00027767,7]
[343720087,1732918243708,-500.0,0.00027767,7]
[343720088,1732918243717,-500.0,0.00027767,7]
[343720089,1732918243727,-500.0,0.00027767,7]
[343720090,1732918243736,-500.0,0.00027767,7]
[343720091,1732918243746,-500.0,0.00027767,7]
[343720092,1732918243756,-500.0,0.00027767,7]
[343720093,1732918243766,-500.0,0.00027767,7]
[343720094,1732918243775,-500.0,0.00027767,7]
[343720095,1732918243785,-500.0,0.00027767,7]
[343720096,1732918243795,-500.0,0.00027767,7]
[343720097,1732918243805,-500.0,0.00027767,7]
[343720098,1732918243814,-500.0,0.00027767,7]
[343720099,1732918243830,-500.0,0.00027767,7]
[343720100,1732918243840,-313.64,0.00027767,7]
[343720101,1732918243849,-500.0,0.00027767,7]
[343720102,1732918243859,-3000.0,0.000278,2]
[343720103,1732918243869,-3000.0,0.0002781,2]
[343720104,1732918243879,-3000.0,0.0002782,2]
[343720105,1732918243889,-572.97516046,0.00027822,2]
[343720106,1732918243899,-3000.0,0.0002783,2]
[343720107,1732918243909,-3000.0,0.0002784,2]
[343720108,1732918243919,-3000.0,0.0002785,2]
[343720109,1732918243928,-3000.0,0.0002786,2]
[343720110,1732918243938,-3000.0,0.0002787,2]
[343720111,1732918243948,-2500.0,0.00027878,2]
[343720112,1732918243958,-3000.0,0.0002788,2]
[343720113,1732918243968,-151.0,0.0002789,7]
[343720114,1732918243977,-151.0,0.0002789,7]
[343720115,1732918243987,-3000.0,0.0002789,2]
[343720116,1732918243997,-3000.0,0.000279,2]
[343720117,1732918244007,-3000.0,0.0002791,2]
[343720118,1732918244016,-3000.0,0.0002792,2]
[343720119,1732918244026,-3000.0,0.0002793,2]
[343720120,1732918244036,-3000.0,0.0002794,2]
[343720121,1732918244045,-3000.0,0.0002795,2]
[343720122,1732918244054,-420.0,0.00027959,2]
[343720123,1732918244064,-3000.0,0.0002796,2]
[343720124,1732918244080,-3000.0,0.0002797,2]
[343720125,1732918244091,-3000.0,0.0002798,2]
[343720126,1732918244101,-3000.0,0.0002799,2]
[343720127,1732918244113,-294.5,0.00027991,15]
[343720128,1732918244127,-3943.971806,0.00028,2]
[343720129,1732918244138,-300.224466,0.00028,20]
[343720130,1732918244148,-151.0,0.000281,20]
[343720131,1732918244158,-151.0,0.00028187,2]
[343720132,1732918244168,-151.0,0.000283,15]
[343720133,1732918244177,-151.0,0.00028372,7]
[343720134,1732918244187,-300.0,0.000284,2]
[343720135,1732918244197,-151.0,0.000284,15]
[343720136,1732918244206,-420.0,0.00028414,2]
[343720137,1732918244215,-312.902316,0.00028467,2]
[343720138,1732918244225,-172.095175,0.00028467,2]
[343720139,1732918244234,-720.916908,0.00028467,2]
[343720140,1732918244243,-304.398741,0.00028467,2]
[343720141,1732918244253,-151.0,0.000285,13]
[343720142,1732918244262,-805.746604,0.000285,27]
[343720143,1732918244272,-370.38454284,0.00028567,7]
[343720144,1732918244281,-151.0,0.000286,7]
[343720145,1732918244291,-151.0,0.000286,7]
[343720146,1732918244300,-151.0,0.000286,7]
[343720147,1732918244310,-151.0,0.000286,7]
[343720148,1732918244321,-168.841722,0.000286,7]
[343720150,1732918244331,-168.841722,0.000286,7]
[343720152,1732918244341,-151.0,0.000286,15]
[343720153,1732918244351,-352.61,0.000286,31]
[343720154,1732918244360,-352.61,0.000286,31]
[343720155,1732918244373,-352.61,0.000286,31]
[343720156,1732918244383,-352.61,0.000286,31]
[343720157,1732918244393,-352.61,0.000286,31]
[343720158,1732918244402,-352.61,0.000286,31]
[343720160,1732918244414,-352.61,0.000286,31]
[343720161,1732918244423,-352.61,0.000286,31]
[343720163,1732918244433,-352.61,0.000286,31]
[343720165,1732918244443,-352.61,0.000286,31]
[343720166,1732918244454,-352.61,0.000286,31]
[343720167,1732918244464,-352.61,0.000286,31]
[343720169,1732918244474,-151.0,0.000286,16]
[343720170,1732918244483,-201.8674227,0.0002861,2]
[343720171,1732918244492,-300.01,0.0002861,2]
[343720172,1732918244502,-150.17,0.0002861,2]
[343720173,1732918244511,-500.0,0.0002861,2]
[343720175,1732918244521,-500.0,0.0002861,2]
[343720176,1732918244530,-500.0,0.0002861,2]
[343720177,1732918244540,-500.0,0.0002861,2]
[343720178,1732918244550,-150.17,0.0002861,2]
[343720179,1732918244560,-500.0,0.0002861,2]
[343720180,1732918244573,-150.17,0.0002861,2]
[343720181,1732918244583,-500.0,0.0002863,2]
[343720182,1732918244593,-261.73708064,0.0002863,2]
[343720183,1732918244603,-150.17,0.0002863,2]
[343720184,1732918244613,-500.0,0.0002863,2]
[343720185,1732918244622,-150.17,0.0002865,2]
[343720186,1732918244631,-500.0,0.0002865,2]
[343720187,1732918244641,-197.57164756,0.0002865,2]
[343720188,1732918244650,-666.0,0.00028667,2]
[343720189,1732918244660,-150.17,0.0002867,2]
[343720190,1732918244669,-150.17,0.0002867,2]
[343720191,1732918244679,-150.17,0.0002867,2]
[343720192,1732918244689,-151.0,0.00028696,7]
[343720193,1732918244698,-906.46724406,0.000287,2]
[343720194,1732918244707,-906.46724406,0.000287,2]
[343720195,1732918244717,-906.46724406,0.000287,2]
[343720196,1732918244726,-906.46724406,0.000287,2]
[343720197,1732918244736,-150.0,0.000287,2]
[343720198,1732918244746,-177.78790605,0.00028767,2]
[343720199,1732918244755,-19788.5313753,0.00028767,2]
[343720200,1732918244765,-151.0,0.00028767,7]
[343720201,1732918244774,-151.0,0.00028767,7]
[343720202,1732918244785,-151.0,0.00028767,7]
[343720203,1732918244794,-151.0,0.00028767,7]
[343720204,1732918244804,-259.43368,0.00028767,7]
[343720205,1732918244813,-151.0,0.00028767,7]
[343720206,1732918244825,-151.0,0.00028767,7]
[343720207,1732918244834,-151.0,0.00028767,7]
[343720208,1732918244843,-151.0,0.00028767,7]
[343720209,1732918244852,-151.0,0.00028767,7]
[343720210,1732918244861,-151.0,0.00028767,7]
[343720211,1732918244870,-151.0,0.00028767,7]
[343720212,1732918244879,-151.0,0.00028767,7]
[343720213,1732918244889,-151.0,0.00028767,7]
[343720214,1732918244898,-151.0,0.00028767,7]
[343720215,1732918244907,-151.0,0.00028767,7]
[343720216,1732918244916,-206.498046,0.00028767,7]
[343720217,1732918244926,-168.841722,0.00028767,7]
[343720218,1732918244935,-168.841722,0.00028767,7]
[343720219,1732918244944,-168.841722,0.00028767,7]
[343720220,1732918244953,-168.841722,0.00028767,7]
[343720221,1732918244962,-168.841722,0.00028767,7]
[343720222,1732918244971,-168.841722,0.00028767,7]
[343720223,1732918244980,-168.841722,0.00028767,7]
[343720224,1732918244990,-168.841722,0.00028767,7]
[343720225,1732918244999,-168.841722,0.00028767,7]
[343720226,1732918245008,-168.841722,0.00028767,7]
[343720227,1732918245017,-168.841722,0.00028767,7]
[343720228,1732918245026,-168.841722,0.00028767,7]
[343720229,1732918245034,-168.841722,0.00028767,7]
[343720230,1732918245043,-168.841722,0.00028767,7]
[343720231,1732918245053,-168.841722,0.00028767,7]
[343720232,1732918245062,-168.841722,0.00028767,7]
[343720233,1732918245074,-168.841722,0.00028767,7]
[343720234,1732918245086,-168.841716,0.00028767,7]
[343720235,1732918245095,-151.0,0.00028767,7]
[343720236,1732918245104,-151.0,0.00028767,7]
[343720237,1732918245113,-151.0,0.00028767,7]
[343720238,1732918245122,-151.0,0.00028767,7]
[343720239,1732918245131,-151.0,0.00028767,7]
[343720240,1732918245140,-151.0,0.00028767,7]
[343720241,1732918245150,-151.0,0.00028767,7]
[343720242,1732918245161,-151.0,0.00028767,7]
[343720243,1732918245171,-151.0,0.00028767,7]
[343720244,1732918245180,-151.0,0.00028767,7]
[343720245,1732918245190,-151.0,0.00028767,7]
[343720246,1732918245199,-151.0,0.00028767,7]
[343720247,1732918245209,-151.0,0.00028767,7]
[343720248,1732918245218,-151.0,0.00028767,7]
[343720249,1732918245227,-151.0,0.00028767,7]
[343720250,1732918245237,-151.0,0.00028767,7]
[343720251,1732918245247,-151.0,0.00028767,7]
[343720252,1732918245256,-151.0,0.00028767,7]
[343720253,1732918245266,-177.520183,0.00028767,7]
[343720254,1732918245276,-151.0,0.00028767,7]
[343720255,1732918245286,-151.0,0.00028767,7]
[343720256,1732918245296,-187.052887,0.00028767,7]
[343720257,1732918245305,-217.483966,0.00028767,7]
[343720258,1732918245314,-218.736834,0.00028767,7]
[343720259,1732918245329,-218.736834,0.00028767,7]
[343720260,1732918245338,-218.736834,0.00028767,7]
[343720261,1732918245347,-218.736834,0.00028767,7]
[343720262,1732918245358,-218.736834,0.00028767,7]
[343720263,1732918245367,-218.736834,0.00028767,7]
[343720264,1732918245380,-218.736834,0.00028767,7]
[343720265,1732918245389,-218.736834,0.00028767,7]
[343720266,1732918245399,-218.736834,0.00028767,7]
[343720267,1732918245523,-218.736834,0.00028767,7]
[343720268,1732918245534,-218.736834,0.00028767,7]
[343720269,1732918245544,-218.736834,0.00028767,7]
[343720270,1732918245554,-218.736834,0.00028767,7]
[343720271,1732918245564,-218.736834,0.00028767,7]
[343720272,1732918245575,-218.736834,0.00028767,7]
[343720273,1732918245584,-218.736834,0.00028767,7]
[343720274,1732918245593,-218.736834,0.00028767,7]
[343720275,1732918245603,-218.736834,0.00028767,7]
[343720276,1732918245614,-218.736834,0.00028767,7]
[343720277,1732918245623,-218.736835,0.00028767,7]
[343720278,1732918245633,-612.41546208,0.00028767,3]
[343720279,1732918245644,-151.0,0.00028767,7]
[343720280,1732918245654,-151.0,0.00028767,7]
[343720281,1732918245665,-151.0,0.00028767,7]
[343720282,1732918245674,-151.0,0.00028767,7]
[343720283,1732918245683,-151.0,0.00028767,7]
[343720284,1732918245694,-151.0,0.00028767,7]
[343720285,1732918245704,-151.0,0.00028767,7]
[343720286,1732918245714,-174.198506,0.00028767,7]
[343720287,1732918245724,-151.0,0.00028767,7]
[343720288,1732918245734,-151.0,0.00028767,7]
[343720289,1732918245743,-151.0,0.00028767,7]
[343720290,1732918245754,-151.0,0.00028767,7]
[343720291,1732918245765,-157.921557,0.00028767,7]
[343720292,1732918245778,-500.0,0.00028767,3]
[343720293,1732918245788,-151.0,0.00028767,7]
[343720294,1732918245798,-500.0,0.00028767,3]
[343720295,1732918245807,-500.0,0.00028767,3]
[343720296,1732918245817,-500.0,0.00028767,3]
[343720297,1732918245827,-500.0,0.00028767,3]
[343720298,1732918245837,-500.0,0.00028767,3]
[343720299,1732918245847,-500.0,0.00028767,3]
[343720300,1732918245856,-503.02038963,0.00028767,3]
[343720301,1732918245865,-151.0,0.00028767,7]
[343720302,1732918245875,-151.0,0.00028767,7]
[343720303,1732918245884,-151.0,0.00028767,7]
[343720304,1732918245894,-500.0,0.00028767,3]
[343720305,1732918245904,-151.0,0.00028767,7]
[343720306,1732918245913,-500.0,0.00028767,3]
[343720307,1732918245922,-151.0,0.00028767,7]
[343720308,1732918245931,-151.0,0.00028767,7]
[343720309,1732918245941,-151.0,0.00028767,7]
[343720310,1732918245950,-502.58551986,0.00028767,3]
[343720311,1732918245960,-500.0,0.00028767,3]
[343720312,1732918245970,-500.0,0.00028767,3]
[343720313,1732918245980,-500.0,0.00028767,3]
[343720314,1732918245989,-500.0,0.00028767,3]
[343720315,1732918245998,-500.0,0.00028767,3]
[343720316,1732918246007,-500.0,0.00028767,3]
[343720317,1732918246016,-579.63717724,0.00028767,3]
[343720318,1732918246025,-500.0,0.00028767,3]
[343720319,1732918246034,-369.54465301,0.00028767,3]
[343720320,1732918246043,-501.7918857,0.00028767,3]
[343720321,1732918246053,-500.0,0.00028767,3]
[343720322,1732918246063,-500.0,0.00028767,3]
[343720323,1732918246073,-500.0,0.00028767,3]
[343720324,1732918246082,-500.0,0.00028767,3]
[343720325,1732918246092,-500.0,0.00028767,3]
[343720326,1732918246102,-500.0,0.00028767,3]
[343720327,1732918246111,-516.07277545,0.00028767,3]
[343720328,1732918246121,-500.0,0.00028767,3]
[343720329,1732918246130,-500.0,0.00028767,3]
[343720330,1732918246139,-500.0,0.00028767,3]
[343720331,1732918246149,-500.0,0.00028767,3]
[343720332,1732918246159,-354.54634783,0.00028767,3]
[343720333,1732918246168,-501.22589495,0.00028767,3]
[343720334,1732918246178,-500.0,0.00028767,3]
[343720335,1732918246188,-500.0,0.00028767,3]
[343720336,1732918246196,-500.0,0.00028767,3]
[343720337,1732918246206,-500.0,0.00028767,3]
[343720338,1732918246214,-506.32671332,0.00028767,3]
[343720339,1732918246223,-500.0,0.00028767,3]
[343720340,1732918246233,-500.0,0.00028767,3]
[343720341,1732918246243,-500.0,0.00028767,3]
[343720342,1732918246252,-500.0,0.00028767,3]
[343720343,1732918246262,-500.0,0.00028767,3]
[343720344,1732918246272,-534.36241641,0.00028767,3]
[343720345,1732918246282,-500.0,0.00028767,3]
[343720346,1732918246292,-500.0,0.00028767,3]
[343720347,1732918246302,-500.0,0.00028767,3]
[343720348,1732918246312,-500.0,0.00028767,3]
[343720349,1732918246323,-500.0,0.00028767,3]
[343720350,1732918246333,-500.0,0.00028767,3]
[343720351,1732918246342,-500.0,0.00028767,3]
[343720352,1732918246352,-500.0,0.00028767,3]
[343720353,1732918246361,-500.0,0.00028767,3]
[343720354,1732918246372,-500.0,0.00028767,3]
[343720355,1732918246382,-500.0,0.00028767,3]
[343720356,1732918246391,-322.26074006,0.00028767,3]
[343720357,1732918246400,-501.23267281,0.00028767,3]
[343720358,1732918246409,-503.03916481,0.00028767,3]
[343720359,1732918246421,-500.97362463,0.00028767,3]
[343720360,1732918246431,-500.0,0.00028767,3]
[343720361,1732918246441,-500.0,0.00028767,3]
[343720362,1732918246451,-500.0,0.00028767,3]
[343720363,1732918246461,-500.0,0.00028767,3]
[343720364,1732918246470,-502.01420199,0.00028767,3]
[343720365,1732918246479,-500.0,0.00028767,3]
[343720366,1732918246489,-500.0,0.00028767,3]
[343720367,1732918246498,-537.51,0.00028767,3]
[343720368,1732918246507,-500.0,0.00028767,3]
[343720369,1732918246516,-502.86829819,0.00028767,3]
[343720370,1732918246525,-500.0,0.00028767,3]
[343720371,1732918246536,-500.72768721,0.00028767,3]
[343720372,1732918246545,-151.0,0.00028767,7]
[343720373,1732918246554,-151.0,0.00028767,7]
[343720374,1732918246564,-151.0,0.00028767,7]
[343720375,1732918246574,-285.685111,0.00028767,7]
[343720376,1732918246584,-504.73194367,0.00028767,3]
[343720377,1732918246593,-500.0,0.00028767,3]
[343720378,1732918246602,-500.0,0.00028767,3]
[343720379,1732918246611,-500.0,0.00028767,3]
[343720380,1732918246620,-500.0,0.00028767,3]
[343720381,1732918246630,-500.0,0.00028767,3]
[343720382,1732918246640,-500.0,0.00028767,3]
[343720383,1732918246649,-500.0,0.00028767,3]
[343720384,1732918246659,-501.53862228,0.00028767,3]
[343720385,1732918246668,-500.0,0.00028767,3]
[343720386,1732918246677,-910.19,0.00028767,3]
[343720387,1732918246686,-910.19,0.00028767,3]
[343720388,1732918246695,-910.19,0.00028767,3]
[343720389,1732918246705,-910.19,0.00028767,3]
[343720390,1732918246714,-910.19,0.00028767,3]
[343720391,1732918246724,-910.19,0.00028767,3]
[343720392,1732918246734,-910.19,0.00028767,3]
[343720393,1732918246743,-910.19,0.00028767,3]
[343720394,1732918246752,-910.19,0.00028767,3]
[343720395,1732918246762,-910.19,0.00028767,3]
[343720396,1732918246772,-910.19,0.00028767,3]
[343720397,1732918246781,-910.19,0.00028767,3]
[343720398,1732918246791,-910.19,0.00028767,3]
[343720399,1732918246800,-910.19,0.00028767,3]
[343720400,1732918246810,-500.0,0.00028767,3]
[343720401,1732918246820,-500.0,0.00028767,3]
[343720402,1732918246829,-500.0,0.00028767,3]
[343720403,1732918246838,-500.0,0.00028767,3]
[343720404,1732918246847,-500.0,0.00028767,3]
[343720405,1732918246857,-605.70290168,0.00028767,3]
[343720406,1732918246866,-910.19,0.00028767,3]
[343720407,1732918246876,-910.19,0.00028767,3]
[343720408,1732918246885,-910.19,0.00028767,3]
[343720409,1732918246894,-910.19,0.00028767,3]
[343720410,1732918246905,-910.19,0.00028767,3]
[343720411,1732918246914,-500.0,0.00028767,3]
[343720412,1732918246923,-910.19,0.00028767,3]
[343720413,1732918246932,-508.09685521,0.00028767,3]
[343720414,1732918246942,-910.19,0.00028767,3]
[343720415,1732918246951,-910.19,0.00028767,3]
[343720416,1732918246961,-910.19,0.00028767,3]
[343720417,1732918246970,-910.39819701,0.00028767,3]
[343720418,1732918246979,-500.0,0.00028767,3]
[343720419,1732918246988,-500.0,0.00028767,3]
[343720420,1732918246997,-502.69954326,0.00028767,3]
[343720421,1732918247007,-519.35696224,0.00028767,3]
[343720422,1732918247016,-614.96569744,0.00028767,3]
[343720423,1732918247024,-500.0,0.00028767,3]
[343720424,1732918247033,-535.23953773,0.00028767,3]
[343720425,1732918247042,-500.0,0.00028767,3]
[343720426,1732918247052,-500.0,0.00028767,3]
[343720427,1732918247061,-500.0,0.00028767,3]
[343720428,1732918247071,-503.76181264,0.00028767,3]
[343720429,1732918247080,-500.0,0.00028767,3]
[343720430,1732918247090,-500.0,0.00028767,3]
[343720431,1732918247099,-500.65046057,0.00028767,3]
[343720432,1732918247108,-500.7733354,0.00028767,3]
[343720433,1732918247118,-500.0,0.00028767,3]
[343720434,1732918247128,-500.0,0.00028767,3]
[343720435,1732918247137,-151.0,0.00028767,7]
[343720436,1732918247147,-151.0,0.00028767,7]
[343720437,1732918247157,-151.0,0.00028767,7]
[343720438,1732918247166,-151.0,0.00028767,7]
[343720439,1732918247175,-246.828962,0.00028767,7]
[343720440,1732918247184,-186.245333,0.00028767,7]
[343720441,1732918247194,-186.245333,0.00028767,7]
[343720442,1732918247203,-186.245333,0.00028767,7]
[343720443,1732918247213,-186.245333,0.00028767,7]
[343720444,1732918247221,-186.245333,0.00028767,7]
[343720445,1732918247231,-186.245333,0.00028767,7]
[343720446,1732918247240,-186.245333,0.00028767,7]
[343720447,1732918247249,-186.245333,0.00028767,7]
[343720448,1732918247259,-186.245333,0.00028767,7]
[343720449,1732918247268,-186.245333,0.00028767,7]
[343720450,1732918247277,-186.245333,0.00028767,7]
[343720451,1732918247287,-186.245333,0.00028767,7]
[343720452,1732918247297,-186.245333,0.00028767,7]
[343720453,1732918247306,-186.245333,0.00028767,7]
[343720454,1732918247316,-186.245333,0.00028767,7]
[343720455,1732918247327,-186.245333,0.00028767,7]
[343720456,1732918247338,-186.245333,0.00028767,7]
[343720457,1732918247347,-186.245324,0.00028767,7]
[343720458,1732918247357,-509.19292601,0.00028767,3]
[343720459,1732918247368,-502.73099161,0.00028767,3]
[343720460,1732918247380,-500.0,0.00028767,3]
[343720461,1732918247391,-500.67204439,0.00028767,3]
[343720462,1732918247400,-500.0,0.00028767,3]
[343720463,1732918247408,-504.11640086,0.00028767,3]
[343720464,1732918247418,-500.0,0.00028767,3]
[343720465,1732918247428,-183.16,0.00028767,3]
[343720466,1732918247436,-500.0,0.00028767,3]
[343720467,1732918247446,-500.0,0.00028767,3]
[343720468,1732918247455,-501.93305308,0.00028767,3]
[343720469,1732918247465,-500.0,0.00028767,3]
[343720470,1732918247475,-374.21036832,0.00028767,3]
[343720471,1732918247485,-501.08261524,0.00028767,3]
[343720472,1732918247494,-501.86303307,0.00028767,3]
[343720473,1732918247504,-508.93361092,0.00028767,3]
[343720474,1732918247513,-500.0,0.00028767,3]
[343720475,1732918247523,-501.70088862,0.00028767,3]
[343720476,1732918247534,-500.0,0.00028767,3]
[343720477,1732918247544,-151.0,0.00028767,7]
[343720478,1732918247555,-151.0,0.00028767,7]
[343720479,1732918247565,-500.0,0.00028767,3]
[343720480,1732918247576,-500.0,0.00028767,3]
[343720481,1732918247585,-500.0,0.00028767,3]
[343720482,1732918247594,-500.0,0.00028767,3]
[343720483,1732918247603,-500.0,0.00028767,3]
[343720484,1732918247613,-526.51067899,0.00028767,3]
[343720485,1732918247622,-513.89345662,0.00028767,3]
[343720486,1732918247632,-502.15793627,0.00028767,3]
[343720487,1732918247641,-500.0,0.00028767,3]
[343720488,1732918247651,-500.0,0.00028767,3]
[343720489,1732918247660,-500.0,0.00028767,3]
[343720490,1732918247670,-500.0,0.00028767,3]
[343720491,1732918247680,-500.0,0.00028767,3]
[343720492,1732918247690,-501.83059877,0.00028767,3]
[343720493,1732918247700,-502.92646735,0.00028767,3]
[343720494,1732918247713,-151.0,0.00028767,7]
[343720495,1732918247723,-151.0,0.00028767,7]
[343720496,1732918247733,-151.0,0.00028767,7]
[343720497,1732918247745,-154.78465665,0.00028767,3]
[343720498,1732918247755,-151.0,0.00028767,7]
[343720499,1732918247764,-151.0,0.00028767,7]
[343720500,1732918247858,-151.0,0.00028767,7]
[343720501,1732918247879,-151.0,0.00028767,7]
[343720502,1732918247889,-265.48798,0.00028767,7]
[343720503,1732918247899,-500.0,0.00028767,3]
[343720504,1732918247908,-500.0,0.00028767,3]
[343720505,1732918247918,-513.53483933,0.00028767,3]
[343720506,1732918247927,-439.60942689,0.00028767,3]
[343720507,1732918247936,-500.0,0.00028767,3]
[343720508,1732918247945,-500.0,0.00028767,3]
[343720509,1732918247954,-500.0,0.00028767,3]
[343720510,1732918247963,-500.0,0.00028767,3]
[343720511,1732918247972,-500.0,0.00028767,3]
[343720512,1732918247983,-500.0,0.00028767,3]
[343720513,1732918247993,-500.0,0.00028767,3]
[343720514,1732918248002,-500.0,0.00028767,3]
[343720516,1732918248012,-500.0,0.00028767,3]